bitfinex-derivatives/quotes_BNBF0:USTF0_20250316
["timestamp","ask_amount","ask_price","bid_price","bid_amount"]
[1742137662990,0.607,601.2,600.28,0.30567044]
[1742137663193,0.607,601.2,600.29,0.30567044]
[1742137663393,0.607,601.2,600.3,0.30567044]
[1742137663590,0.607,601.2,600.31,0.30567044]
[1742137663791,0.607,601.2,600.32,0.30567044]
[1742137663995,0.607,601.2,600.33,0.30567044]
[1742137664197,0.607,601.2,600.26,0.33318895]
[1742137664389,0.607,601.2,600.27,0.3056819]
[1742137664590,0.607,601.2,600.28,0.3056819]
[1742137664889,0.607,601.2,600.29,0.3056819]
[1742137665093,0.607,601.2,600.3,0.3056819]
[1742137665294,0.607,601.2,600.31,0.3056819]
[1742137665499,0.607,601.2,600.32,0.3056819]
[1742137665691,0.607,601.2,600.33,0.3056819]
[1742137665991,0.607,601.2,600.34,0.3056819]
[1742137666193,0.607,601.2,600.27,0.3056819]
[1742137666395,0.607,601.2,600.28,0.3056819]
[1742137666597,0.607,601.2,600.29,0.3056819]
[1742137666900,0.607,601.2,600.3,0.3056819]
[1742137667193,0.607,601.2,600.31,0.3056819]
[1742137667398,0.607,601.2,600.32,0.3056819]
[1742137667595,0.607,601.2,600.33,0.3056819]
[1742137667794,0.607,601.2,600.27,0.3056819]
[1742137667993,0.607,601.2,600.28,0.30576407]
[1742137668197,0.607,601.2,600.27,0.30576407]
[1742137668398,0.607,601.2,600.29,0.30576407]
[1742137668698,0.607,601.2,600.3,0.30576407]
[1742137668896,0.607,601.2,600.27,0.30576407]
[1742137669100,0.607,601.2,600.28,0.30576407]
[1742137669299,0.607,601.2,600.27,0.30576407]
[1742137669502,0.607,601.2,600.29,0.30576407]
[1742137669696,0.607,601.2,600.3,0.30576407]
[1742137670097,0.607,601.2,600.31,0.30576407]
[1742137670398,0.607,601.2,600.26,0.33318895]
[1742137670399,0.607,601.2,600.32,0.30576407]
[1742137670703,0.607,601.2,600.33,0.30576407]
[1742137670902,0.607,601.2,600.27,0.30576407]
[1742137671100,0.607,601.2,600.28,0.30576407]
[1742137671299,0.607,601.2,600.27,0.30576407]
[1742137671497,0.607,601.2,600.28,0.30576407]
[1742137671700,0.607,601.2,600.27,0.30576407]
[1742137671897,0.607,601.2,600.28,0.30576407]
[1742137672098,0.607,601.2,600.27,0.30576407]
[1742137672397,0.33267353,601.19,600.28,0.30576407]
[1742137672598,0.33267353,601.19,600.15,0.30576407]
[1742137672803,0.33267353,601.19,600.14,0.661]
[1742137672804,0.33267353,601.19,600.16,0.30576407]
[1742137673001,0.33267353,601.19,600.15,0.30576407]
[1742137673202,0.33267353,601.19,600.16,0.30576407]
[1742137673401,0.33267353,601.19,600.17,0.30576407]
[1742137673603,0.33267353,601.19,600.18,0.30576407]
[1742137673801,0.33267353,601.19,600.19,0.30576407]
[1742137674002,0.33267353,601.19,600.2,0.30576407]
[1742137674204,0.33267353,601.19,600.15,0.30576407]
[1742137676300,0.93867353,601.19,600.15,0.30576407]
[1742137679206,0.93867353,601.19,599.77,0.30576407]
[1742137679405,0.93867353,601.19,599.78,0.63921967]
[1742137679603,0.93867353,601.19,599.79,0.30576407]
[1742137679807,0.93867353,601.19,599.8,0.30576407]
[1742137680004,0.93867353,601.19,599.81,0.30576407]
[1742137680204,0.93867353,601.19,599.82,0.30576407]
[1742137680405,0.93867353,601.19,599.83,0.30576407]
[1742137680611,0.93867353,601.19,599.84,0.30576407]
[1742137680811,0.93867353,601.19,599.85,0.30576407]
[1742137681005,0.93867353,601.19,599.86,0.30576407]
[1742137681210,0.93867353,601.19,599.78,0.3334556]
[1742137681211,0.93867353,601.19,599.87,0.30576407]
[1742137681411,0.93867353,601.19,599.79,0.30576407]
[1742137681612,0.93867353,601.19,599.88,0.713]
[1742137681913,0.93867353,601.19,599.89,0.30576407]
[1742137683805,0.93867353,601.19,599.9,0.30600144]
[1742137684006,0.93867353,601.19,599.89,0.30600144]
[1742137685711,0.93867353,601.19,599.88,0.713]
[1742137685913,0.93867353,601.19,599.89,0.30598053]
[1742137687613,0.93867353,601.19,599.88,0.713]
[1742137687913,0.93867353,601.19,599.89,0.30598937]
[1742137691413,0.93867353,601.19,599.88,0.713]
[1742137691819,0.93867353,601.19,599.89,0.30600827]
[1742137692018,0.93867353,601.19,599.88,0.713]
[1742137692417,0.93867353,601.19,599.89,0.30602395]
[1742137693219,0.93867353,601.19,599.88,0.713]
[1742137694822,0.93867353,601.19,599.89,0.30604258]
[1742137695023,0.93867353,601.19,599.89,0.30608729]
[1742137698129,0.93867353,601.19,599.88,0.713]
[1742137698328,0.93867353,601.19,599.89,0.30615282]
[1742137699028,0.93867353,601.19,599.88,0.713]
[1742137699230,0.93867353,601.19,599.89,0.30613013]
[1742137699725,0.93867353,601.19,599.88,0.713]
[1742137703432,0.29002175,601.18,599.88,0.713]
[1742137703633,0.33269013,601.16,599.88,0.713]
[1742137706332,0.29002296,601.15,599.88,0.713]
[1742137706535,0.33270673,601.13,599.88,0.713]
[1742137709437,0.62271519,601.13,599.88,0.713]
[1742137710040,0.33270673,601.13,599.88,0.713]
[1742137735553,2.54021484,601.02,599.88,0.713]
[1742137735758,0.3327787,601.0,599.88,0.713]
[1742137740055,0.577,600.99,599.88,0.713]
[1742137740260,0.33279531,600.97,599.88,0.713]
[1742137741661,0.33279531,600.97,599.25,0.2899553]
[1742137741858,0.33279531,600.97,599.26,0.63995405]
[1742137742056,0.33279531,600.97,599.27,0.3062091]
[1742137742663,0.33279531,600.97,599.26,0.33374495]
[1742137742963,0.33279531,600.97,599.27,0.30622281]
[1742137745366,0.33279531,600.97,599.27,1.29622281]
[1742137745663,0.33279531,600.97,599.28,0.30622281]
[1742137746063,0.33279531,600.97,599.29,0.30622281]
[1742137746262,0.33279531,600.97,599.28,0.30622281]
[1742137746458,0.33279531,600.97,599.27,0.99]
[1742137746661,0.33279531,600.97,599.28,0.30624057]
[1742137747661,0.33279531,600.97,599.29,0.30624057]
[1742137747861,0.33279531,600.97,599.3,0.30624057]
[1742137748162,0.33279531,600.97,599.31,0.30624057]
[1742137748463,0.33279531,600.97,599.32,0.30624057]
[1742137748663,0.33279531,600.97,599.33,0.30624057]
[1742137748864,0.33279531,600.97,599.34,0.30624057]
[1742137749059,0.33279531,600.97,599.28,0.30624057]
[1742137749363,0.33279531,600.97,599.29,0.30624057]
[1742137749563,0.33279531,600.97,599.28,0.30624057]
[1742137749763,0.33279531,600.97,599.29,0.30624057]
[1742137750062,0.33279531,600.97,599.3,0.30624057]
[1742137750264,0.33279531,600.97,599.31,0.30626709]
[1742137750464,2.54021484,600.84,599.28,0.30626709]
[1742137750663,0.33287839,600.82,599.28,0.30626709]
[1742137762074,0.93787839,600.82,599.28,0.30626709]
[1742137768873,0.93787839,600.82,599.29,0.30622452]
[1742137769070,0.93787839,600.82,599.28,0.30622452]
[1742137772478,0.93787839,600.82,599.29,0.30626111]
[1742137772773,0.93787839,600.82,599.3,0.30626111]
[1742137772973,0.93787839,600.82,599.28,0.30626111]
[1742137773278,0.93787839,600.82,599.29,0.30626111]
[1742137773474,0.93787839,600.82,599.28,0.30626111]
[1742137774975,0.93787839,600.82,599.29,0.33372824]
[1742137775176,0.93787839,600.82,599.3,0.30626111]
[1742137775776,0.93787839,600.82,599.31,0.30626111]
[1742137775975,0.93787839,600.82,599.32,0.30626111]
[1742137776179,0.93787839,600.82,599.33,0.63996708]
[1742137776376,0.93787839,600.82,599.34,0.63996151]
[1742137776578,0.93787839,600.82,599.35,0.63995594]
[1742137776777,0.93787839,600.82,599.36,0.30626111]
[1742137776980,0.93787839,600.82,599.37,0.30626111]
[1742137777181,0.93787839,600.82,599.38,0.30626111]
[1742137777583,0.93787839,600.82,599.39,0.30626111]
[1742137777885,0.93787839,600.82,599.4,0.30626111]
[1742137778084,0.93787839,600.82,599.36,0.30626111]
[1742137778283,0.93787839,600.82,599.37,0.30626111]
[1742137778480,0.93787839,600.82,599.36,0.30626111]
[1742137778678,0.93787839,600.82,599.37,0.30626111]
[1742137778881,0.93787839,600.82,599.38,0.30626111]
[1742137779081,0.93787839,600.82,599.39,0.30626111]
[1742137779282,0.93787839,600.82,599.4,0.30626111]
[1742137779483,0.93787839,600.82,599.41,0.30626111]
[1742137779683,0.93787839,600.82,599.42,0.30626111]
[1742137779883,0.93787839,600.82,599.43,0.30626111]
[1742137780184,0.93787839,600.82,599.44,0.30626111]
[1742137780383,0.93787839,600.82,599.45,0.30626111]
[1742137780778,0.93787839,600.82,599.46,0.30626111]
[1742137780983,0.93787839,600.82,599.36,0.30626111]
[1742137781285,0.93787839,600.82,599.37,0.30626111]
[1742137781484,0.93787839,600.82,599.38,0.30626111]
[1742137781784,0.93787839,600.82,599.39,0.30626111]
[1742137781991,0.93787839,600.82,599.4,0.30626111]
[1742137782288,0.93787839,600.82,599.41,0.30626111]
[1742137782488,0.93787839,600.82,599.36,0.30626111]
[1742137782787,0.93787839,600.82,599.37,0.30626111]
[1742137783091,0.93787839,600.82,599.38,0.30626111]
[1742137783384,0.93787839,600.82,599.35,0.33369483]
[1742137783385,0.93787839,600.82,599.39,0.30626111]
[1742137783590,0.93787839,600.82,599.4,0.30626111]
[1742137783889,0.93787839,600.82,599.41,0.30626111]
[1742137784089,0.93787839,600.82,599.42,0.30626111]
[1742137784289,0.93787839,600.82,599.43,0.30626111]
[1742137784490,0.93787839,600.82,599.44,0.30626111]
[1742137784685,0.93787839,600.82,599.36,0.30626111]
[1742137784884,0.93787839,600.82,599.37,0.30626111]
[1742137785083,0.93787839,600.82,599.38,0.30626111]
[1742137785281,0.93787839,600.82,599.39,0.30626111]
[1742137785487,0.93787839,600.82,599.35,0.33369483]
[1742137785488,0.93787839,600.82,599.4,0.30626111]
[1742137785784,0.93787839,600.82,599.41,0.30626111]
[1742137785985,0.93787839,600.82,599.42,0.30626111]
[1742137786186,0.93787839,600.82,599.43,0.30626111]
[1742137786389,0.93787839,600.82,599.44,0.30626111]
[1742137786786,0.93787839,600.82,599.45,0.30626111]
[1742137786985,0.93787839,600.82,599.36,0.30626111]
[1742137787184,0.93787839,600.82,599.37,0.63994481]
[1742137787490,0.93787839,600.82,599.38,0.63979309]
[1742137787690,0.93787839,600.82,599.39,0.63978752]
[1742137787891,0.93787839,600.82,599.4,0.63978196]
[1742137788091,0.93787839,600.82,599.41,0.63977639]
[1742137788286,0.93787839,600.82,599.42,0.63977082]
[1742137788494,0.93787839,600.82,599.43,0.30611496]
[1742137788791,0.93787839,600.82,599.44,0.63975969]
[1742137788995,0.93787839,600.82,599.46,0.3336336]
[1742137789196,0.93787839,600.82,599.47,0.30611496]
[1742137789397,0.93787839,600.82,599.48,0.63973743]
[1742137789596,0.93787839,600.82,599.49,0.63973186]
[1742137789796,0.93787839,600.82,599.5,0.6397263]
[1742137789996,0.93787839,600.82,599.51,0.63972073]
[1742137790297,0.93787839,600.82,599.52,0.30611496]
[1742137790496,0.93787839,600.82,599.53,0.30611496]
[1742137790691,0.93787839,600.82,599.54,0.30611496]
[1742137790892,0.93787839,600.82,599.55,0.30611496]
[1742137791093,0.93787839,600.82,599.56,0.30611496]
[1742137791296,0.93787839,600.82,599.57,0.30611496]
[1742137791496,0.93787839,600.82,599.58,0.30611496]
[1742137791797,0.93787839,600.82,599.59,0.30611496]
[1742137791991,0.93787839,600.82,599.6,0.30611496]
[1742137792197,0.93787839,600.82,599.61,0.30611496]
[1742137792390,0.93787839,600.82,599.62,0.30611496]
[1742137792595,0.93787839,600.82,599.63,0.63965397]
[1742137792795,0.93787839,600.82,599.64,0.63964841]
[1742137793002,0.93787839,600.82,599.65,0.30611496]
[1742137793192,0.93787839,600.82,599.66,0.30611496]
[1742137793398,0.93787839,600.82,599.67,0.63963172]
[1742137793599,0.93787839,600.82,599.68,0.30611496]
[1742137794194,0.93787839,600.82,599.68,0.94411496]
[1742137794494,0.93787839,600.82,599.69,0.30611496]
[1742137795196,0.93787839,600.82,599.7,0.30604955]
[1742137795397,0.93787839,600.82,599.69,0.30604955]
[1742137803809,0.93787839,600.82,599.7,0.30607514]
[1742137804104,0.93787839,600.82,599.69,0.30607514]
[1742137804308,0.93787839,600.82,599.68,0.638]
[1742137804309,0.93787839,600.82,599.7,0.30607514]
[1742137804505,0.93787839,600.82,599.71,0.30607514]
[1742137804711,0.93787839,600.82,599.69,0.30607514]
[1742137804908,0.93787839,600.82,599.7,0.30607514]
[1742137805211,0.93787839,600.82,599.71,0.30607514]
[1742137805406,0.93787839,600.82,599.69,0.30607514]
[1742137805605,0.93787839,600.82,599.7,0.30603221]
[1742137806005,0.93787839,600.82,599.71,0.30603221]
[1742137806209,0.93787839,600.82,599.69,0.30603221]
[1742137806710,0.93787839,600.82,599.7,0.30603221]
[1742137807106,0.93787839,600.82,599.71,0.30603221]
[1742137807306,0.93787839,600.82,599.69,0.30603221]
[1742137807509,0.93787839,600.82,599.7,0.30603221]
[1742137807711,0.93787839,600.82,599.71,0.30603221]
[1742137807911,0.93787839,600.82,599.69,0.30603221]
[1742137808311,0.93787839,600.82,599.7,0.30603221]
[1742137808704,0.93787839,600.82,599.71,0.30603221]
[1742137808908,0.93787839,600.82,599.69,0.30603221]
[1742137809106,0.93787839,600.82,599.7,0.30603221]
[1742137809308,0.93787839,600.82,599.71,0.30603221]
[1742137809506,0.93787839,600.82,599.69,0.30603221]
[1742137809712,0.93787839,600.82,599.7,0.30603221]
[1742137809912,0.93787839,600.82,599.71,0.30603221]
[1742137810112,0.93787839,600.82,599.72,0.30603221]
[1742137810513,0.93787839,600.82,599.73,0.30603221]
[1742137810712,0.93787839,600.82,599.74,0.30603221]
[1742137810913,0.93787839,600.82,599.75,0.30603221]
[1742137811112,0.93787839,600.82,599.76,0.30603221]
[1742137811412,0.93787839,600.82,599.77,0.30599764]
[1742137811611,0.93787839,600.82,599.69,0.30599764]
[1742137811807,0.93787839,600.82,599.7,0.30599764]
[1742137812208,0.93787839,600.82,599.71,0.30599764]
[1742137812410,0.93787839,600.82,599.72,0.30599764]
[1742137812612,0.93787839,600.82,599.69,0.30599764]
[1742137812807,0.93787839,600.82,599.7,0.30599764]
[1742137813215,0.93787839,600.82,599.71,0.30607424]
[1742137813707,0.93787839,600.82,599.72,0.30607424]
[1742137813908,0.93787839,600.82,599.69,0.30607424]
[1742137814110,0.93787839,600.82,599.7,0.30607424]
[1742137814314,0.93787839,600.82,599.71,0.30607424]
[1742137814515,0.93787839,600.82,599.72,0.30607424]
[1742137814815,0.93787839,600.82,599.73,0.30607424]
[1742137815114,0.93787839,600.82,599.68,0.30607424]
[1742137815315,0.93787839,600.82,599.67,0.33351676]
[1742137815510,0.93787839,600.82,599.68,0.30611179]
[1742137817011,0.93787839,600.82,599.67,0.33351676]
[1742137817217,0.93787839,600.82,599.68,0.30613323]
[1742137817614,0.93787839,600.82,599.68,1.29213323]
[1742137817812,0.93787839,600.82,599.68,0.986]
[1742137818011,0.93787839,600.82,599.69,0.30614493]
[1742137818718,0.93787839,600.82,599.68,0.986]
[1742137819018,0.93787839,600.82,599.69,0.30616353]
[1742137819512,0.93787839,600.82,599.68,0.986]
[1742137819513,0.93787839,600.82,599.7,0.30619708]
[1742137819713,0.93787839,600.82,599.69,0.30619708]
[1742137819916,0.93787839,600.82,599.68,0.986]
[1742137820116,0.93787839,600.82,599.69,0.30619708]
[1742137823113,0.93787839,600.82,599.7,0.30615403]
[1742137823317,0.93787839,600.82,599.69,0.30615403]
[1742137823515,0.93787839,600.82,599.7,0.30615403]
[1742137823718,0.93787839,600.82,599.69,0.30615403]
[1742137823919,0.93787839,600.82,599.7,0.30615403]
[1742137824119,0.93787839,600.82,599.69,0.30615403]
[1742137824319,0.93787839,600.82,599.68,0.986]
[1742137824513,0.93787839,600.82,599.69,0.30613548]
[1742137826921,0.93787839,600.82,599.68,0.986]
[1742137827115,0.93787839,600.82,599.69,0.30614376]
[1742137830622,0.93787839,600.82,599.68,0.986]
[1742137839224,0.93787839,600.82,599.69,0.30625948]
[1742137840124,0.93787839,600.82,599.68,0.986]
[1742137867452,0.93787839,600.82,599.68,0.9781771]
[1742137867655,0.93787839,600.82,598.98,0.29011484]
[1742137867957,0.93787839,600.82,598.99,0.30636812]
[1742137868353,0.93787839,600.82,599.0,0.30636812]
[1742137868557,0.93787839,600.82,598.99,0.30636812]
[1742137869254,0.93787839,600.82,599.0,0.30637216]
[1742137869454,0.93787839,600.82,598.99,0.30637216]
[1742137870060,0.93787839,600.82,598.86,0.29022855]
[1742137870261,0.93787839,600.82,598.87,0.30637216]
[1742137870657,0.93787839,600.82,598.88,0.30637216]
[1742137870856,0.93787839,600.82,598.87,0.30637216]
[1742137871056,0.93787839,600.82,598.89,0.30637216]
[1742137871257,0.93787839,600.82,598.9,0.30637216]
[1742137871459,0.93787839,600.82,598.77,0.29026487]
[1742137871460,0.29029029,600.81,598.78,0.30637216]
[1742137871760,0.33293935,600.71,598.79,0.30637216]
[1742137871958,0.33293935,600.71,598.78,0.30637216]
[1742137872156,0.33293935,600.71,598.79,0.30637216]
[1742137872356,0.33293935,600.71,598.78,0.30637216]
[1742137872562,0.33293935,600.71,598.79,0.30637216]
[1742137872755,0.33293935,600.71,598.78,0.30637216]
[1742137872956,0.33293935,600.71,598.77,0.29026487]
[1742137873155,0.33293935,600.71,598.78,0.30645267]
[1742137874163,0.33293935,600.71,598.78,1.29345267]
[1742137874364,0.33293935,600.71,598.79,0.30645267]
[1742137874561,0.29027697,600.7,598.79,0.30645267]
[1742137874766,0.33295598,600.68,598.8,0.33400133]
[1742137874966,0.33295598,600.68,598.81,0.30645267]
[1742137875164,0.33295598,600.68,598.82,0.33399018]
[1742137875373,0.33295598,600.68,598.83,0.30645267]
[1742137875660,0.33295598,600.68,598.84,0.64043169]
[1742137875866,0.603,600.67,598.85,0.64042611]
[1742137876077,0.33297261,600.65,598.86,0.64042054]
[1742137876368,0.33297261,600.65,598.87,0.64041496]
[1742137876561,0.33297261,600.65,598.88,0.64040938]
[1742137876760,0.33297261,600.65,598.89,0.64040381]
[1742137877066,0.33297261,600.65,598.9,0.64039823]
[1742137877265,0.33297261,600.65,598.91,0.30645267]
[1742137877666,0.33297261,600.65,598.92,0.64038708]
[1742137877869,0.33297261,600.65,598.93,0.6403815]
[1742137878168,0.33297261,600.65,598.94,0.64037593]
[1742137878368,0.33297261,600.65,598.95,0.64037035]
[1742137878571,0.33297261,600.65,598.96,0.64036478]
[1742137878763,0.33297261,600.65,598.97,0.6403592]
[1742137878969,0.33297261,600.65,598.98,0.64035363]
[1742137879166,0.33297261,600.65,598.99,0.64034806]
[1742137879468,0.33297261,600.65,599.0,0.64034248]
[1742137879664,0.33297261,600.65,599.0,0.33388981]
[1742137879867,0.33297261,600.65,599.01,0.30632787]
[1742137880062,0.33297261,600.65,599.02,0.64020653]
[1742137880269,0.33297261,600.65,599.03,0.30632787]
[1742137880570,0.33297261,600.65,599.02,0.33387866]
[1742137880571,0.33297261,600.65,599.04,0.30632787]
[1742137880766,0.33297261,600.65,599.05,0.30632787]
[1742137880971,0.33297261,600.65,599.06,0.30632787]
[1742137881171,0.33297261,600.65,599.07,0.30632787]
[1742137881369,0.33297261,600.65,599.08,0.30632787]
[1742137881565,0.33297261,600.65,599.09,0.30632787]
[1742137881768,0.33297261,600.65,599.1,0.30632787]
[1742137881970,0.33297261,600.65,599.11,0.30632787]
[1742137882271,0.33297261,600.65,599.12,0.30632787]
[1742137882465,0.33297261,600.65,599.02,0.33387866]
[1742137882466,0.33297261,600.65,599.03,0.30632787]
[1742137882669,0.33297261,600.65,599.04,0.30632787]
[1742137882870,0.33297261,600.65,599.03,0.30632787]
[1742137883070,0.33297261,600.65,599.04,0.30632787]
[1742137883268,0.33297261,600.65,599.03,0.30632787]
[1742137883572,0.33297261,600.65,599.04,0.30632787]
[1742137883771,0.33297261,600.65,599.03,0.30632787]
[1742137884168,0.33297261,600.65,599.03,0.64020096]
[1742137884372,0.33297261,600.65,599.04,0.30632787]
[1742137884569,0.33297261,600.65,599.05,0.30632787]
[1742137884869,0.33297261,600.65,599.06,0.30632787]
[1742137885073,0.33297261,600.65,599.04,0.30632787]
[1742137885274,0.33297261,600.65,599.05,0.30632787]
[1742137885470,0.33297261,600.65,599.06,0.30632787]
[1742137885669,0.33297261,600.65,599.04,0.30632787]
[1742137885875,0.33297261,600.65,599.05,0.30632787]
[1742137886074,0.33297261,600.65,599.04,0.30632787]
[1742137886375,0.33297261,600.65,599.05,0.30632787]
[1742137886574,0.33297261,600.65,599.04,0.30632787]
[1742137887274,0.33297261,600.65,599.05,0.30632787]
[1742137887474,0.33297261,600.65,599.06,0.30632787]
[1742137887670,0.33297261,600.65,599.03,0.33387309]
[1742137887671,0.33297261,600.65,599.07,0.30632787]
[1742137887870,0.33297261,600.65,599.04,0.30632787]
[1742137888070,0.33297261,600.65,599.03,0.33387309]
[1742137888273,0.33297261,600.65,599.04,0.30632597]
[1742137888575,0.33297261,600.65,599.05,0.30632597]
[1742137888777,0.33297261,600.65,599.06,0.30632597]
[1742137888976,0.33297261,600.65,599.04,0.30632597]
[1742137889180,0.33297261,600.65,599.05,0.30632597]
[1742137889378,0.33297261,600.65,599.04,0.30632597]
[1742137889578,0.33297261,600.65,599.05,0.30632597]
[1742137889878,0.33297261,600.65,599.03,0.33387309]
[1742137890074,0.33297261,600.65,599.04,0.30634691]
[1742137892275,0.33297261,600.65,599.05,0.30634691]
[1742137892477,0.33297261,600.65,599.04,0.30634691]
[1742137897578,0.33297261,600.65,599.03,0.33387309]
[1742137897882,0.33297261,600.65,599.04,0.3063386]
[1742137899485,0.33297261,600.65,599.03,0.33387309]
[1742137899783,0.33297261,600.65,599.04,0.3063555]
[1742137905284,0.33297261,600.65,599.03,0.33387309]
[1742137905489,0.33297261,600.65,599.04,0.30641089]
[1742137907088,0.33297261,600.65,599.03,0.33387309]
[1742137907294,0.33297261,600.65,599.04,0.30644429]
[1742137907593,0.603,600.64,599.04,0.30644429]
[1742137907791,0.33298924,600.62,599.04,0.30644429]
[1742137910686,0.33298924,600.62,599.05,0.30644429]
[1742137910891,0.33298924,600.62,598.79,0.30644429]
[1742137916295,0.33298924,600.62,598.8,0.33400133]
[1742137916596,0.33298924,600.62,598.81,0.30644429]
[1742137916793,0.33298924,600.62,598.81,0.64044004]
[1742137916993,0.33298924,600.62,598.82,0.30644429]
[1742137917190,0.33298924,600.62,598.84,0.33397902]
[1742137917395,0.33298924,600.62,598.85,0.30644429]
[1742137917594,0.33298924,600.62,598.86,0.30644429]
[1742137917797,0.33298924,600.62,598.87,0.30644429]
[1742137917998,0.33298924,600.62,598.89,0.33395114]
[1742137918297,0.33298924,600.62,598.9,0.30644429]
[1742137918498,0.33298924,600.62,598.92,0.33393441]
[1742137918798,0.33298924,600.62,598.93,0.30644429]
[1742137918991,0.33298924,600.62,598.95,0.33391768]
[1742137919191,0.33298924,600.62,598.96,0.30644429]
[1742137919498,0.33298924,600.62,598.98,0.33390096]
[1742137919698,0.33298924,600.62,598.99,0.30644429]
[1742137919998,0.33298924,600.62,599.01,0.33388424]
[1742137920198,0.33298924,600.62,599.02,0.30644429]
[1742137920499,0.33298924,600.62,599.04,0.33386752]
[1742137920896,0.33298924,600.62,599.05,0.30616174]
[1742137921199,0.33298924,600.62,599.07,0.3338508]
[1742137921400,0.33298924,600.62,599.08,0.30616174]
[1742137921700,0.33298924,600.62,599.1,0.33383408]
[1742137921902,0.33298924,600.62,599.11,0.30616174]
[1742137922201,0.33298924,600.62,599.13,0.33381736]
[1742137922393,0.33298924,600.62,599.14,0.30616174]
[1742137922594,0.33298924,600.62,599.15,0.63996796]
[1742137922795,0.33298924,600.62,599.16,0.63996239]
[1742137922997,0.33298924,600.62,599.17,0.63995682]
[1742137923198,0.33298924,600.62,599.18,0.63995125]
[1742137923398,0.33298924,600.62,599.19,0.63994568]
[1742137923599,0.33298924,600.62,599.2,0.63994011]
[1742137923800,0.33298924,600.62,599.21,0.63993454]
[1742137923994,0.33298924,600.62,599.22,0.63992897]
[1742137924194,0.33298924,600.62,599.23,0.6399234]
[1742137924401,0.33298924,600.62,599.24,0.63991783]
[1742137924703,0.33298924,600.62,599.25,0.63991226]
[1742137924904,0.33298924,600.62,599.26,0.63990669]
[1742137925099,0.33298924,600.62,599.04,0.643]
[1742137925100,0.33298924,600.62,599.27,0.63990112]
[1742137925305,0.33298924,600.62,599.28,0.63989555]
[1742137925606,0.33298924,600.62,599.29,0.33372824]
[1742137925800,0.33298924,600.62,599.3,0.30617318]
[1742137928207,0.33298924,600.62,599.31,0.3337171]
[1742137928403,0.602,600.61,599.32,0.30617318]
[1742137928602,0.93499478,600.61,599.33,0.33370597]
[1742137928803,0.93499478,600.61,599.34,0.30617318]
[1742137933212,0.93499478,600.61,599.33,0.33370597]
[1742137933512,0.93499478,600.61,599.34,0.30615792]
[1742137933711,0.93499478,600.61,599.35,0.30615792]
[1742137933912,0.93499478,600.61,599.36,0.30615792]
[1742137934114,0.93499478,600.61,599.37,0.30615792]
[1742137934309,0.93499478,600.61,599.34,0.30615792]
[1742137934511,0.93499478,600.61,599.35,0.30615792]
[1742137934713,0.93499478,600.61,599.36,0.30615792]
[1742137935015,0.33300033,600.6,599.37,0.30615792]
[1742137935215,0.33300033,600.6,599.38,0.30615792]
[1742137935407,0.33300033,600.6,599.39,0.30615792]
[1742137935605,0.33300033,600.6,599.33,0.33370597]
[1742137935606,0.33300033,600.6,599.4,0.30615792]
[1742137935814,0.33300033,600.6,599.41,0.30615792]
[1742137936014,0.33300033,600.6,599.34,0.30615792]
[1742137936215,0.33300033,600.6,599.35,0.30615792]
[1742137936513,0.33300033,600.6,599.36,0.30615792]
[1742137936707,0.33300033,600.6,599.37,0.30615792]
[1742137937113,0.33300033,600.6,599.34,0.30615792]
[1742137937310,0.33300033,600.6,599.35,0.30615792]
[1742137937513,0.33300033,600.6,599.34,0.30615792]
[1742137937714,0.33300033,600.6,599.35,0.30615792]
[1742137937917,0.33300033,600.6,599.34,0.30615792]
[1742137938117,0.33300033,600.6,599.35,0.30615792]
[1742137938318,0.33300033,600.6,599.36,0.33368926]
[1742137938619,0.33300033,600.6,599.37,0.30615792]
[1742137939416,0.33300033,600.6,599.38,0.33367813]
[1742137939616,0.33300033,600.6,599.39,0.30615792]
[1742137940015,0.33300033,600.6,599.4,0.63974697]
[1742137940218,0.33300033,600.6,599.41,0.30607997]
[1742137940617,0.33300033,600.6,599.42,0.33365586]
[1742137940817,0.33300033,600.6,599.43,0.30607997]
[1742137941118,0.33300033,600.6,599.44,0.63973736]
[1742137941318,0.33300033,600.6,599.45,0.63973179]
[1742137941519,0.33300033,600.6,599.46,0.63972623]
[1742137941817,0.33300033,600.6,599.47,0.63972066]
[1742137942017,0.33300033,600.6,599.33,0.29004351]
[1742137942018,0.33300033,600.6,599.48,0.6397151]
[1742137942218,0.33300033,600.6,599.49,0.63970953]
[1742137942411,0.33300033,600.6,599.5,0.63970397]
[1742137942612,0.33300033,600.6,599.51,0.6396984]
[1742137942817,0.33300033,600.6,599.52,0.33360021]
[1742137943019,0.33300033,600.6,599.53,0.30609263]
[1742137943213,0.33300033,600.6,599.53,0.63968727]
[1742137943614,0.33300033,600.6,599.54,0.30609263]
[1742137945422,0.602,600.59,599.55,0.33358352]
[1742137945624,0.602,600.59,599.56,0.30609263]
[1742137945823,0.602,600.59,599.57,0.33357239]
[1742137946024,0.602,600.59,599.58,0.30609263]
[1742137946425,0.602,600.59,599.59,0.33356126]
[1742137946724,0.602,600.59,599.6,0.30609263]